[Event "Late-Titled-Tuesday-Blitz-October-24-2023"]
[Site "Chess.com"]
[Date "2023.10.24"]
[Round "11"]
[White "JackRodgers"]
[Black "KNVB"]
[Result "1/2-1/2"]
[WhiteElo "2549"]
[BlackElo "2689"]
[TimeControl "180+1"]
[EndTime "16:07:33 PDT"]
[Termination "Game drawn by repetition"]

1. d4 {[%clk 0:03:00.9]} 1... Nf6 {[%clk 0:03:00]} 2. Bg5 {[%clk 0:03:00.5]}
2... d5 {[%clk 0:02:59.4]} 3. Bxf6 {[%clk 0:03:00.3]} 3... exf6 {[%clk
0:02:59.8]} 4. e3 {[%clk 0:03:00.4]} 4... Bd6 {[%clk 0:02:56.9]} 5. g3 {[%clk
0:03:00.5]} 5... c6 {[%clk 0:02:53.1]} 6. Bg2 {[%clk 0:02:59.2]} 6... f5 {[%clk
0:02:52.4]} 7. Ne2 {[%clk 0:02:50.4]} 7... Nd7 {[%clk 0:02:51.4]} 8. b3 {[%clk
0:02:49.1]} 8... Nf6 {[%clk 0:02:43.9]} 9. c4 {[%clk 0:02:47.7]} 9... Bb4+
{[%clk 0:02:26.3]} 10. Kf1 {[%clk 0:02:46.5]} 10... O-O {[%clk 0:02:23.7]} 11.
a3 {[%clk 0:02:45.5]} 11... Ba5 {[%clk 0:02:23.6]} 12. b4 {[%clk 0:02:46]} 12...
Bc7 {[%clk 0:02:23.7]} 13. c5 {[%clk 0:02:45.8]} 13... Ne4 {[%clk 0:02:10]} 14.
a4 {[%clk 0:02:43.7]} 14... b6 {[%clk 0:02:04.5]} 15. Nbc3 {[%clk 0:02:20.2]}
15... bxc5 {[%clk 0:02:04]} 16. dxc5 {[%clk 0:02:13.6]} 16... Be5 {[%clk
0:01:18.1]} 17. Rc1 {[%clk 0:02:09.1]} 17... Ba6 {[%clk 0:01:06.2]} 18. b5
{[%clk 0:02:02]} 18... Bxc3 {[%clk 0:00:51.2]} 19. bxa6 {[%clk 0:01:40.1]} 19...
Be5 {[%clk 0:00:34.9]} 20. Nd4 {[%clk 0:01:40.4]} 20... Bxd4 {[%clk 0:00:34.1]}
21. Qxd4 {[%clk 0:01:41.1]} 21... Rb8 {[%clk 0:00:32.4]} 22. Bxe4 {[%clk
0:01:38.7]} 22... fxe4 {[%clk 0:00:32.3]} 23. Kg2 {[%clk 0:01:38.7]} 23... Qa5
{[%clk 0:00:29.8]} 24. Rb1 {[%clk 0:01:30]} 24... Qxa6 {[%clk 0:00:23.7]} 25.
Qe5 {[%clk 0:01:30.4]} 25... Rb7 {[%clk 0:00:05.7]} 26. h4 {[%clk 0:01:22.9]}
26... h6 {[%clk 0:00:02.9]} 27. h5 {[%clk 0:01:22.3]} 27... Rxb1 {[%clk
0:00:02.3]} 28. Rxb1 {[%clk 0:01:23.2]} 28... Qxa4 {[%clk 0:00:03.1]} 29. Rb7
{[%clk 0:01:16.5]} 29... a5 {[%clk 0:00:03.3]} 30. Ra7 {[%clk 0:01:14.9]} 30...
Qb5 {[%clk 0:00:01.9]} 31. Qc7 {[%clk 0:01:10.1]} 31... Qe2 {[%clk 0:00:01.9]}
32. Qxc6 {[%clk 0:01:05.4]} 32... Qf3+ {[%clk 0:00:02]} 33. Kg1 {[%clk
0:01:06.1]} 33... Qd1+ {[%clk 0:00:02.2]} 34. Kg2 {[%clk 0:01:04.6]} 34... Qf3+
{[%clk 0:00:02.5]} 35. Kg1 {[%clk 0:01:05.2]} 35... Qxh5 {[%clk 0:00:03]} 36.
Rxa5 {[%clk 0:00:59.4]} 36... Qd1+ {[%clk 0:00:03]} 37. Kg2 {[%clk 0:00:59.8]}
37... Qf3+ {[%clk 0:00:03]} 38. Kg1 {[%clk 0:01:00]} 38... Qd1+ {[%clk
0:00:03.1]} 39. Kg2 {[%clk 0:00:58.1]} 39... Qf3+ {[%clk 0:00:01.9]} 40. Kg1
{[%clk 0:00:58.2]} 40... d4 {[%clk 0:00:02.1]} 41. exd4 {[%clk 0:00:50.2]} 41...
Qd1+ {[%clk 0:00:02.4]} 42. Kg2 {[%clk 0:00:49.9]} 42... Qf3+ {[%clk 0:00:02.6]}
43. Kg1 {[%clk 0:00:50.1]} 43... Qd1+ {[%clk 0:00:02.8]} 44. Kg2 {[%clk
0:00:50.3]} 44... Qd2 {[%clk 0:00:03.1]} 45. Ra8 {[%clk 0:00:46.6]} 45... Qxd4
{[%clk 0:00:03.3]} 46. Rxf8+ {[%clk 0:00:40.5]} 46... Kxf8 {[%clk 0:00:04.2]}
47. Qc8+ {[%clk 0:00:36.9]} 47... Ke7 {[%clk 0:00:04.3]} 48. c6 {[%clk
0:00:36.8]} 48... e3 {[%clk 0:00:04.3]} 49. Qc7+ {[%clk 0:00:33.3]} 49... Ke6
{[%clk 0:00:02.7]} 50. fxe3 {[%clk 0:00:30]} 50... Qe4+ {[%clk 0:00:02.1]} 51.
Kf2 {[%clk 0:00:30.2]} 51... Qc2+ {[%clk 0:00:02.5]} 52. Kf3 {[%clk 0:00:29.8]}
52... Qd1+ {[%clk 0:00:02.7]} 53. Kf2 {[%clk 0:00:29.1]} 53... Qc2+ {[%clk
0:00:03.2]} 54. Kf3 {[%clk 0:00:29.2]} 54... Qd1+ {[%clk 0:00:03.6]} 55. Kf2
{[%clk 0:00:29.7]} 55... Qc2+ {[%clk 0:00:04.1]} 1/2-1/2

[Event "Late-Titled-Tuesday-Blitz-October-24-2023"]
[Site "Chess.com"]
[Date "2023.10.24"]
[Round "11"]
[White "Payyappat"]
[Black "Kirill_Klukin"]
[Result "0-1"]
[WhiteElo "2535"]
[BlackElo "2639"]
[TimeControl "180+1"]
[EndTime "16:07:40 PDT"]
[Termination "Kirill_Klukin won by checkmate"]

1. e4 {[%clk 0:03:00.9]} 1... c5 {[%clk 0:02:59.8]} 2. Nf3 {[%clk 0:03:00.3]}
2... g6 {[%clk 0:03:00.5]} 3. d4 {[%clk 0:03:01.2]} 3... cxd4 {[%clk 0:03:01.4]}
4. Nxd4 {[%clk 0:03:02.1]} 4... Bg7 {[%clk 0:03:01]} 5. Nc3 {[%clk 0:03:03]}
5... Nc6 {[%clk 0:03:00.9]} 6. Be3 {[%clk 0:03:03]} 6... Nf6 {[%clk 0:03:01.4]}
7. f4 {[%clk 0:03:02.4]} 7... d6 {[%clk 0:02:54.7]} 8. Be2 {[%clk 0:03:02.2]}
8... O-O {[%clk 0:02:53.3]} 9. Qd3 {[%clk 0:02:54.9]} 9... Ng4 {[%clk
0:02:40.6]} 10. Bxg4 {[%clk 0:02:47]} 10... Bxg4 {[%clk 0:02:40.2]} 11. O-O
{[%clk 0:02:47.9]} 11... Bd7 {[%clk 0:02:33.4]} 12. h3 {[%clk 0:02:40.2]} 12...
Rc8 {[%clk 0:02:33.4]} 13. g4 {[%clk 0:02:38.9]} 13... Nxd4 {[%clk 0:01:51.5]}
14. Bxd4 {[%clk 0:02:39.8]} 14... e5 {[%clk 0:01:52]} 15. Bxa7 {[%clk
0:02:22.9]} 15... exf4 {[%clk 0:01:52.1]} 16. Qxd6 {[%clk 0:02:22.1]} 16... Be6
{[%clk 0:01:34.6]} 17. Qxd8 {[%clk 0:02:19.1]} 17... Rfxd8 {[%clk 0:01:35.5]}
18. Rad1 {[%clk 0:02:15.4]} 18... Be5 {[%clk 0:01:21.7]} 19. Kg2 {[%clk
0:01:58.7]} 19... f6 {[%clk 0:01:10.5]} 20. Rxd8+ {[%clk 0:01:32.1]} 20... Rxd8
{[%clk 0:01:09.2]} 21. Rd1 {[%clk 0:01:33]} 21... Rxd1 {[%clk 0:00:56.8]} 22.
Nxd1 {[%clk 0:01:33.9]} 22... Bxa2 {[%clk 0:00:57.1]} 23. b3 {[%clk 0:01:32.4]}
23... Bb1 {[%clk 0:00:54.5]} 24. Nf2 {[%clk 0:01:26.9]} 24... Bxc2 {[%clk
0:00:54.4]} 25. b4 {[%clk 0:01:27]} 25... Kf7 {[%clk 0:00:52.1]} 26. Kf3 {[%clk
0:01:16.2]} 26... Ke6 {[%clk 0:00:52.3]} 27. Ke2 {[%clk 0:01:14.9]} 27... f5
{[%clk 0:00:25.7]} 28. exf5+ {[%clk 0:01:04]} 28... gxf5 {[%clk 0:00:26.6]} 29.
Kf3 {[%clk 0:01:03.7]} 29... Kd5 {[%clk 0:00:21.3]} 30. Bc5 {[%clk 0:01:00.7]}
30... Be4+ {[%clk 0:00:20.9]} 31. Ke2 {[%clk 0:00:57.3]} 31... fxg4 {[%clk
0:00:17.7]} 32. Nxg4 {[%clk 0:00:53.9]} 32... Bg7 {[%clk 0:00:18]} 33. h4 {[%clk
0:00:43.7]} 33... h5 {[%clk 0:00:17.9]} 34. Nf2 {[%clk 0:00:41.6]} 34... Bf6
{[%clk 0:00:17.9]} 35. Nh3 {[%clk 0:00:39.3]} 35... Ke5 {[%clk 0:00:11.8]} 36.
Bf2 {[%clk 0:00:32.2]} 36... Kf5 {[%clk 0:00:12.1]} 37. Be1 {[%clk 0:00:29]}
37... Bc6 {[%clk 0:00:08.8]} 38. Bd2 {[%clk 0:00:14.2]} 38... f3+ {[%clk
0:00:07.1]} 39. Ke3 {[%clk 0:00:14.5]} 39... Bxh4 {[%clk 0:00:07.3]} 40. Bc3
{[%clk 0:00:12.6]} 40... Bg3 {[%clk 0:00:06.2]} 41. Ng1 {[%clk 0:00:12.1]} 41...
Kg4 {[%clk 0:00:06]} 42. Nxf3 {[%clk 0:00:02.4]} 42... Bxf3 {[%clk 0:00:06.2]}
43. b5 {[%clk 0:00:02.7]} 43... h4 {[%clk 0:00:06.5]} 44. b6 {[%clk 0:00:03.3]}
44... h3 {[%clk 0:00:06.6]} 45. Be1 {[%clk 0:00:02.2]} 45... Bxe1 {[%clk
0:00:06.6]} 46. Kd4 {[%clk 0:00:02.5]} 46... h2 {[%clk 0:00:07.1]} 47. Kc5
{[%clk 0:00:03.1]} 47... h1=Q {[%clk 0:00:07.8]} 48. Kd6 {[%clk 0:00:03.8]}
48... Bc6 {[%clk 0:00:08.1]} 49. Kc7 {[%clk 0:00:04.7]} 49... Bg3+ {[%clk
0:00:08.6]} 50. Kc8 {[%clk 0:00:04.8]} 50... Qh8# {[%clk 0:00:06.9]} 0-1

[Event "Late-Titled-Tuesday-Blitz-October-24-2023"]
[Site "Chess.com"]
[Date "2023.10.24"]
[Round "11"]
[White "CraiggoryC"]
[Black "Vamostodorecto"]
[Result "1-0"]
[WhiteElo "2225"]
[BlackElo "2447"]
[TimeControl "180+1"]
[EndTime "16:07:43 PDT"]
[Termination "CraiggoryC won on time"]

1. e4 {[%clk 0:03:00.9]} 1... g6 {[%clk 0:02:59.1]} 2. d4 {[%clk 0:03:01.2]}
2... Bg7 {[%clk 0:02:58.3]} 3. Nc3 {[%clk 0:03:01.9]} 3... d6 {[%clk 0:02:58.5]}
4. Be3 {[%clk 0:03:02.5]} 4... a6 {[%clk 0:02:58]} 5. Qd2 {[%clk 0:03:03.1]}
5... b5 {[%clk 0:02:58.1]} 6. Bd3 {[%clk 0:03:02.4]} 6... Bb7 {[%clk 0:02:57.8]}
7. Nf3 {[%clk 0:02:59.7]} 7... Nd7 {[%clk 0:02:58.4]} 8. h3 {[%clk 0:02:51.8]}
8... c5 {[%clk 0:02:58.3]} 9. O-O {[%clk 0:02:49]} 9... c4 {[%clk 0:02:53.3]}
10. Be2 {[%clk 0:02:45.1]} 10... b4 {[%clk 0:02:47.7]} 11. Nd5 {[%clk 0:02:29]}
11... e6 {[%clk 0:02:40.1]} 12. Nf4 {[%clk 0:02:23.7]} 12... Bxe4 {[%clk
0:02:34.4]} 13. Qxb4 {[%clk 0:02:18.4]} 13... Qc7 {[%clk 0:02:22.3]} 14. Qxc4
{[%clk 0:02:07.8]} 14... Qxc4 {[%clk 0:02:20.9]} 15. Bxc4 {[%clk 0:02:06.8]}
15... Bxf3 {[%clk 0:02:02.3]} 16. gxf3 {[%clk 0:02:05.6]} 16... d5 {[%clk
0:01:59.1]} 17. Be2 {[%clk 0:01:54.2]} 17... Ne7 {[%clk 0:02:00]} 18. Nd3 {[%clk
0:01:42.3]} 18... Nf5 {[%clk 0:01:57.8]} 19. c3 {[%clk 0:01:41.9]} 19... Ke7
{[%clk 0:01:52]} 20. Rfe1 {[%clk 0:01:32.5]} 20... Nb6 {[%clk 0:01:38.9]} 21. b3
{[%clk 0:01:27.3]} 21... Rhc8 {[%clk 0:01:37.1]} 22. Nc5 {[%clk 0:01:22.7]}
22... a5 {[%clk 0:01:35.9]} 23. Ba6 {[%clk 0:00:58.2]} 23... Rxc5 {[%clk
0:01:19.8]} 24. dxc5 {[%clk 0:00:55.9]} 24... Nd7 {[%clk 0:01:20.5]} 25. Bb7
{[%clk 0:00:44.5]} 25... Rb8 {[%clk 0:01:19.6]} 26. c6 {[%clk 0:00:44.5]} 26...
Nd6 {[%clk 0:00:54.7]} 27. Ba7 {[%clk 0:00:14.5]} 27... Bxc3 {[%clk 0:00:33.3]}
28. Bxb8 {[%clk 0:00:13.6]} 28... Nxb8 {[%clk 0:00:32]} 29. c7 {[%clk
0:00:09.6]} 29... Nd7 {[%clk 0:00:25]} 30. Rac1 {[%clk 0:00:08.1]} 30... Bxe1
{[%clk 0:00:24.5]} 31. Rxe1 {[%clk 0:00:07.8]} 31... Nc5 {[%clk 0:00:17.5]} 32.
c8=Q {[%clk 0:00:07.6]} 32... Nxc8 {[%clk 0:00:13.8]} 33. Bxc8 {[%clk
0:00:08.5]} 33... Nd3 {[%clk 0:00:13.2]} 34. Rd1 {[%clk 0:00:07.2]} 34... Nf4
{[%clk 0:00:13.2]} 35. Ba6 {[%clk 0:00:06.3]} 35... Nxh3+ {[%clk 0:00:12.3]} 36.
Kg2 {[%clk 0:00:06.4]} 36... Nf4+ {[%clk 0:00:13.1]} 37. Kf1 {[%clk 0:00:06.6]}
37... Kd6 {[%clk 0:00:12.2]} 38. a3 {[%clk 0:00:06.4]} 38... Kc5 {[%clk
0:00:11.2]} 39. Rc1+ {[%clk 0:00:06.6]} 39... Kb6 {[%clk 0:00:10.8]} 40. Be2
{[%clk 0:00:05.1]} 40... h5 {[%clk 0:00:10.5]} 41. b4 {[%clk 0:00:05.5]} 41...
h4 {[%clk 0:00:09.8]} 42. Bd1 {[%clk 0:00:02.3]} 42... h3 {[%clk 0:00:09.4]} 43.
Kg1 {[%clk 0:00:02.7]} 43... axb4 {[%clk 0:00:08]} 44. axb4 {[%clk 0:00:01.7]}
44... Nd3 {[%clk 0:00:08.2]} 45. Rb1 {[%clk 0:00:02.3]} 45... Kc6 {[%clk
0:00:05.3]} 46. Be2 {[%clk 0:00:02.8]} 46... Nf4 {[%clk 0:00:04.9]} 47. Bf1
{[%clk 0:00:03]} 47... d4 {[%clk 0:00:04.6]} 48. Kh2 {[%clk 0:00:03.2]} 48... d3
{[%clk 0:00:03.5]} 49. Bxh3 {[%clk 0:00:03]} 1-0

[Event "Late-Titled-Tuesday-Blitz-October-24-2023"]
[Site "Chess.com"]
[Date "2023.10.24"]
[Round "11"]
[White "Alexei_Gubajdullin"]
[Black "Alphafischer2019"]
[Result "1-0"]
[WhiteElo "2730"]
[BlackElo "2615"]
[TimeControl "180+1"]
[EndTime "16:07:44 PDT"]
[Termination "Alexei_Gubajdullin won by checkmate"]

1. d4 {[%clk 0:03:00]} 1... Nf6 {[%clk 0:02:59.8]} 2. Nf3 {[%clk 0:02:59.8]}
2... b6 {[%clk 0:02:59.8]} 3. Bf4 {[%clk 0:02:58.6]} 3... Bb7 {[%clk 0:03:00.1]}
4. e3 {[%clk 0:02:58.8]} 4... g6 {[%clk 0:03:00]} 5. h3 {[%clk 0:02:59]} 5...
Bg7 {[%clk 0:03:00.5]} 6. Be2 {[%clk 0:02:59.4]} 6... O-O {[%clk 0:03:00.7]} 7.
O-O {[%clk 0:02:59.6]} 7... d6 {[%clk 0:03:01.4]} 8. a4 {[%clk 0:02:59.6]} 8...
a6 {[%clk 0:03:01.6]} 9. a5 {[%clk 0:02:58.5]} 9... b5 {[%clk 0:03:01.9]} 10. c4
{[%clk 0:02:58.8]} 10... bxc4 {[%clk 0:03:02.6]} 11. Bxc4 {[%clk 0:02:59.1]}
11... Nbd7 {[%clk 0:03:03.3]} 12. Nc3 {[%clk 0:02:59.1]} 12... c5 {[%clk
0:03:01.4]} 13. d5 {[%clk 0:02:58.9]} 13... Ne8 {[%clk 0:02:54.8]} 14. e4 {[%clk
0:02:55.7]} 14... Rb8 {[%clk 0:02:48.2]} 15. Qd3 {[%clk 0:02:54.5]} 15... Nc7
{[%clk 0:02:47.6]} 16. Rfe1 {[%clk 0:02:52.9]} 16... Bc8 {[%clk 0:02:46.8]} 17.
Ra2 {[%clk 0:02:38.4]} 17... f6 {[%clk 0:02:37.5]} 18. h4 {[%clk 0:02:13.6]}
18... Ne5 {[%clk 0:02:37.1]} 19. Nxe5 {[%clk 0:02:07.4]} 19... fxe5 {[%clk
0:02:38]} 20. Bg5 {[%clk 0:02:07]} 20... h6 {[%clk 0:02:36.5]} 21. Be3 {[%clk
0:02:04.9]} 21... Qe8 {[%clk 0:02:27.8]} 22. Na4 {[%clk 0:01:57.6]} 22... Nb5
{[%clk 0:02:26.7]} 23. Nb6 {[%clk 0:01:57.3]} 23... Qf7 {[%clk 0:02:07.3]} 24.
f3 {[%clk 0:01:56.5]} 24... Qf6 {[%clk 0:01:56.6]} 25. Bxb5 {[%clk 0:01:33.7]}
25... axb5 {[%clk 0:01:54.6]} 26. Nxc8 {[%clk 0:01:33.4]} 26... Rfxc8 {[%clk
0:01:52.2]} 27. a6 {[%clk 0:01:29.5]} 27... b4 {[%clk 0:01:45.4]} 28. a7 {[%clk
0:01:26.8]} 28... Ra8 {[%clk 0:01:46]} 29. Qa6 {[%clk 0:01:13.5]} 29... Qxh4
{[%clk 0:01:43.2]} 30. Bf2 {[%clk 0:01:13.4]} 30... Qf4 {[%clk 0:01:42.4]} 31.
Qb7 {[%clk 0:01:08.2]} 31... Qf8 {[%clk 0:01:34.8]} 32. Qd7 {[%clk 0:01:05.1]}
32... g5 {[%clk 0:01:33.7]} 33. Ra6 {[%clk 0:01:03.2]} 33... Bf6 {[%clk
0:01:28.4]} 34. Rb6 {[%clk 0:01:01.6]} 34... Qe8 {[%clk 0:01:27]} 35. Qe6+
{[%clk 0:01:01.5]} 35... Qf7 {[%clk 0:01:26.1]} 36. Rb7 {[%clk 0:00:50.4]} 36...
h5 {[%clk 0:01:00.7]} 37. b3 {[%clk 0:00:48.2]} 37... Kf8 {[%clk 0:00:56.4]} 38.
Ra1 {[%clk 0:00:46.2]} 38... Qxe6 {[%clk 0:00:28.7]} 39. dxe6 {[%clk 0:00:44.4]}
39... Ke8 {[%clk 0:00:28.5]} 40. Ra6 {[%clk 0:00:43.5]} 40... Kd8 {[%clk
0:00:28.5]} 41. Rd7+ {[%clk 0:00:35]} 41... Ke8 {[%clk 0:00:28.4]} 42. Rb6
{[%clk 0:00:34.5]} 42... g4 {[%clk 0:00:23.2]} 43. Rbb7 {[%clk 0:00:30.2]} 43...
gxf3 {[%clk 0:00:18.8]} 44. gxf3 {[%clk 0:00:30]} 44... Bg5 {[%clk 0:00:18.9]}
45. Kh2 {[%clk 0:00:29.5]} 45... c4 {[%clk 0:00:07.7]} 46. bxc4 {[%clk 0:00:28]}
46... Rxc4 {[%clk 0:00:08.6]} 47. Rb8+ {[%clk 0:00:25.1]} 47... Rc8 {[%clk
0:00:09.3]} 48. Rxc8+ {[%clk 0:00:23.9]} 48... Rxc8 {[%clk 0:00:08.9]} 49. Rb7
{[%clk 0:00:24.1]} 49... Bf4+ {[%clk 0:00:05.2]} 50. Kh3 {[%clk 0:00:23.7]}
50... Be3 {[%clk 0:00:04.8]} 51. Bxe3 {[%clk 0:00:21.2]} 51... b3 {[%clk
0:00:05.7]} 52. Rb8 {[%clk 0:00:20.7]} 52... b2 {[%clk 0:00:06.3]} 53. Rxc8#
{[%clk 0:00:20]} 1-0

[Event "Late-Titled-Tuesday-Blitz-October-24-2023"]
[Site "Chess.com"]
[Date "2023.10.24"]
[Round "11"]
[White "The_Sherman_Variation"]
[Black "GMKrikor"]
[Result "0-1"]
[WhiteElo "2586"]
[BlackElo "2806"]
[TimeControl "180+1"]
[EndTime "16:07:46 PDT"]
[Termination "GMKrikor won on time"]

1. e4 {[%clk 0:03:00.9]} 1... e6 {[%clk 0:02:57.6]} 2. d4 {[%clk 0:03:00.5]}
2... d5 {[%clk 0:02:56]} 3. e5 {[%clk 0:03:01.1]} 3... c5 {[%clk 0:02:55.4]} 4.
c3 {[%clk 0:03:01.7]} 4... Nc6 {[%clk 0:02:55.9]} 5. Nf3 {[%clk 0:03:01.1]} 5...
Bd7 {[%clk 0:02:56.2]} 6. Be2 {[%clk 0:02:59.2]} 6... cxd4 {[%clk 0:02:55.2]} 7.
cxd4 {[%clk 0:03:00]} 7... Nge7 {[%clk 0:02:55.5]} 8. Na3 {[%clk 0:03:00.7]}
8... Nf5 {[%clk 0:02:55.3]} 9. Nc2 {[%clk 0:03:01.3]} 9... Be7 {[%clk
0:02:55.7]} 10. O-O {[%clk 0:03:02]} 10... O-O {[%clk 0:02:56.3]} 11. Bd3 {[%clk
0:03:02.6]} 11... f6 {[%clk 0:02:57]} 12. Bxf5 {[%clk 0:03:03.2]} 12... exf5
{[%clk 0:02:57.9]} 13. Bf4 {[%clk 0:03:03.6]} 13... g5 {[%clk 0:02:50.5]} 14.
exf6 {[%clk 0:03:03.1]} 14... Bxf6 {[%clk 0:02:51.4]} 15. Be5 {[%clk 0:03:03.5]}
15... Be7 {[%clk 0:02:51.6]} 16. Qd3 {[%clk 0:02:53.7]} 16... f4 {[%clk
0:02:42.4]} 17. Rfe1 {[%clk 0:02:50.5]} 17... Bf5 {[%clk 0:02:42.4]} 18. Qb3
{[%clk 0:02:50.5]} 18... Na5 {[%clk 0:02:11.4]} 19. Qa4 {[%clk 0:02:32.7]} 19...
Bd7 {[%clk 0:01:54.7]} 20. Bc7 {[%clk 0:02:31.4]} 20... Bxa4 {[%clk 0:01:49.7]}
21. Bxd8 {[%clk 0:02:30.5]} 21... Bxd8 {[%clk 0:01:49.6]} 22. Nb4 {[%clk
0:02:31.2]} 22... Bc6 {[%clk 0:01:42.5]} 23. b3 {[%clk 0:02:27.8]} 23... Bf6
{[%clk 0:01:35]} 24. Ne5 {[%clk 0:02:24.5]} 24... Rfe8 {[%clk 0:01:29.4]} 25. h4
{[%clk 0:02:20.9]} 25... gxh4 {[%clk 0:01:28.2]} 26. Nbd3 {[%clk 0:02:15.5]}
26... f3 {[%clk 0:01:13.5]} 27. gxf3 {[%clk 0:02:12.7]} 27... Re7 {[%clk
0:01:10.8]} 28. f4 {[%clk 0:02:10.7]} 28... Bb5 {[%clk 0:01:05.1]} 29. Nb4
{[%clk 0:02:08]} 29... Rd8 {[%clk 0:01:04.9]} 30. Kh2 {[%clk 0:02:04]} 30... Kf8
{[%clk 0:00:53.3]} 31. Rac1 {[%clk 0:01:20.8]} 31... Nc6 {[%clk 0:00:53.3]} 32.
Nc2 {[%clk 0:01:21.6]} 32... Bxe5 {[%clk 0:00:51.8]} 33. fxe5 {[%clk 0:01:20.5]}
33... Bd3 {[%clk 0:00:51.9]} 34. Red1 {[%clk 0:00:56.6]} 34... Bxc2 {[%clk
0:00:51.4]} 35. Rxc2 {[%clk 0:00:57.5]} 35... Rf7 {[%clk 0:00:52.1]} 36. Kh3
{[%clk 0:00:33.6]} 36... Rf4 {[%clk 0:00:51.6]} 37. Rd3 {[%clk 0:00:34]} 37...
Ke7 {[%clk 0:00:48.8]} 38. b4 {[%clk 0:00:33.4]} 38... Nxb4 {[%clk 0:00:40.8]}
39. Rc7+ {[%clk 0:00:33.3]} 39... Rd7 {[%clk 0:00:41.4]} 40. Rdc3 {[%clk
0:00:24.5]} 40... Nc6 {[%clk 0:00:30.6]} 41. Rc8 {[%clk 0:00:21.1]} 41... Rxd4
{[%clk 0:00:29.6]} 42. Rh8 {[%clk 0:00:19.1]} 42... Ke6 {[%clk 0:00:30.1]} 43.
Rf3 {[%clk 0:00:17.1]} 43... Nxe5 {[%clk 0:00:29.8]} 44. Re8+ {[%clk 0:00:17.5]}
44... Re7 {[%clk 0:00:30.1]} 45. Rff8 {[%clk 0:00:17.6]} 45... Rxe8 {[%clk
0:00:30.1]} 46. Rxe8+ {[%clk 0:00:17.2]} 46... Kd6 {[%clk 0:00:30.7]} 47. Rd8+
{[%clk 0:00:17.5]} 47... Kc6 {[%clk 0:00:27.6]} 48. Rh8 {[%clk 0:00:18.4]} 48...
Rf4 {[%clk 0:00:26.4]} 49. Rxh7 {[%clk 0:00:19.3]} 49... Rxf2 {[%clk 0:00:25.3]}
50. a4 {[%clk 0:00:18.8]} 50... Rf4 {[%clk 0:00:24.6]} 51. a5 {[%clk 0:00:17.9]}
51... Ra4 {[%clk 0:00:24.7]} 52. Rh6+ {[%clk 0:00:18]} 52... Kc5 {[%clk
0:00:25.1]} 53. Re6 {[%clk 0:00:18.5]} 53... Nc6 {[%clk 0:00:24.9]} 54. a6
{[%clk 0:00:18.4]} 54... Rxa6 {[%clk 0:00:24.8]} 55. Re3 {[%clk 0:00:19]} 55...
Ra4 {[%clk 0:00:24.6]} 56. Re1 {[%clk 0:00:18.6]} 56... b5 {[%clk 0:00:24.4]}
57. Rc1+ {[%clk 0:00:19.5]} 57... Rc4 {[%clk 0:00:24.6]} 0-1

[Event "Late-Titled-Tuesday-Blitz-October-24-2023"]
[Site "Chess.com"]
[Date "2023.10.24"]
[Round "11"]
[White "Mariia89"]
[Black "AndresDelgado77"]
[Result "0-1"]
[WhiteElo "2194"]
[BlackElo "2346"]
[TimeControl "180+1"]
[EndTime "16:07:52 PDT"]
[Termination "AndresDelgado77 won on time"]

1. d4 {[%clk 0:02:59.9]} 1... Nf6 {[%clk 0:02:59.6]} 2. Nf3 {[%clk 0:03:00.4]}
2... c5 {[%clk 0:02:57.9]} 3. d5 {[%clk 0:02:59.9]} 3... b5 {[%clk 0:02:56.7]}
4. c4 {[%clk 0:02:57.3]} 4... Bb7 {[%clk 0:02:54.8]} 5. Nc3 {[%clk 0:02:53.4]}
5... b4 {[%clk 0:02:54.4]} 6. Nb1 {[%clk 0:02:53.6]} 6... e6 {[%clk 0:02:54.3]}
7. Bg5 {[%clk 0:02:47.5]} 7... h6 {[%clk 0:02:38.5]} 8. Bh4 {[%clk 0:02:35.5]}
8... exd5 {[%clk 0:02:33.7]} 9. cxd5 {[%clk 0:02:32]} 9... g5 {[%clk 0:02:33.8]}
10. Bg3 {[%clk 0:02:32.1]} 10... Bxd5 {[%clk 0:02:27.6]} 11. Nbd2 {[%clk
0:02:30.9]} 11... d6 {[%clk 0:02:25.6]} 12. e3 {[%clk 0:02:24.8]} 12... Bg7
{[%clk 0:02:10.9]} 13. Bb5+ {[%clk 0:02:09.2]} 13... Bc6 {[%clk 0:01:45.2]} 14.
Qa4 {[%clk 0:02:08.3]} 14... Qd7 {[%clk 0:01:36.6]} 15. Bxc6 {[%clk 0:02:05]}
15... Nxc6 {[%clk 0:01:36.8]} 16. Nc4 {[%clk 0:02:02.5]} 16... Ne4 {[%clk
0:01:37]} 17. Nfd2 {[%clk 0:01:38.3]} 17... Nxg3 {[%clk 0:01:27.7]} 18. hxg3
{[%clk 0:01:37.3]} 18... O-O {[%clk 0:01:27.7]} 19. Qc2 {[%clk 0:01:26.4]} 19...
d5 {[%clk 0:01:16.2]} 20. O-O-O {[%clk 0:01:21.4]} 20... dxc4 {[%clk 0:01:13.6]}
21. Nxc4 {[%clk 0:01:22.3]} 21... Qe6 {[%clk 0:01:12.7]} 22. Rd6 {[%clk
0:01:19.8]} 22... Qe8 {[%clk 0:00:53.9]} 23. Qf5 {[%clk 0:01:14.9]} 23... Ne7
{[%clk 0:00:47.7]} 24. Qxc5 {[%clk 0:01:01.5]} 24... Rc8 {[%clk 0:00:45.9]} 25.
Qxb4 {[%clk 0:01:01.6]} 25... Nf5 {[%clk 0:00:35.7]} 26. Rd2 {[%clk 0:00:56.6]}
26... Qe4 {[%clk 0:00:33.6]} 27. Rc2 {[%clk 0:00:54.3]} 27... Qxg2 {[%clk
0:00:22.3]} 28. Rd1 {[%clk 0:00:54.4]} 28... Rb8 {[%clk 0:00:19.7]} 29. Qa5
{[%clk 0:00:44.4]} 29... Qf3 {[%clk 0:00:18.3]} 30. Ne5 {[%clk 0:00:34.3]} 30...
Qe4 {[%clk 0:00:15.4]} 31. Nd7 {[%clk 0:00:24.2]} 31... Rfc8 {[%clk 0:00:14.8]}
32. Nc5 {[%clk 0:00:18.1]} 32... Qe5 {[%clk 0:00:08.9]} 33. Qa3 {[%clk
0:00:15.1]} 33... Bf8 {[%clk 0:00:05.3]} 34. Nd7 {[%clk 0:00:12.5]} 34... Bxa3
{[%clk 0:00:01.9]} 35. Nxe5 {[%clk 0:00:10]} 35... Bxb2+ {[%clk 0:00:01.7]} 36.
Kd2 {[%clk 0:00:09.3]} 36... Bxe5 {[%clk 0:00:02.2]} 37. Rdc1 {[%clk 0:00:06.2]}
37... Rd8+ {[%clk 0:00:01.9]} 38. Ke2 {[%clk 0:00:06.3]} 38... Nd6 {[%clk
0:00:02.1]} 39. f4 {[%clk 0:00:04.7]} 39... Bf6 {[%clk 0:00:01.8]} 40. Kf3
{[%clk 0:00:04.7]} 40... Be7 {[%clk 0:00:01.6]} 41. e4 {[%clk 0:00:04]} 41... f6
{[%clk 0:00:01.6]} 42. e5 {[%clk 0:00:02.8]} 42... Nb5 {[%clk 0:00:01.8]} 0-1